bitfinex-derivatives/quotes_ETHF0:USTF0_20260125
["timestamp","ask_amount","ask_price","bid_price","bid_amount"]
[1769310010977,0.77921364,2956.4,2955.1,0.77921364]
[1769310011282,0.77921364,2956.2,2955.1,0.92962713]
[1769310011679,0.77921364,2956.2,2955.1,0.15041349]
[1769310012983,5.68,2956.5,2955.1,0.15041349]
[1769310013277,4.2974791,2956.4,2955.1,0.15041349]
[1769310013479,4.2974791,2956.3,2955.1,0.15041349]
[1769310013680,4.2974791,2956.2,2955.1,0.15041349]
[1769310013980,5.68,2956.5,2955.1,0.15041349]
[1769310014179,4.29700538,2956.4,2955.1,0.15041349]
[1769310014382,4.29700538,2956.3,2955.1,0.15041349]
[1769310014677,5.68,2956.5,2955.1,0.15041349]
[1769310014880,4.29666633,2956.4,2955.1,0.15041349]
[1769310015187,5.07532603,2956.3,2954.7,0.14981089]
[1769310015381,4.29666633,2956.2,2954.7,0.14981089]
[1769310015685,4.29666633,2956.1,2954.7,0.14981089]
[1769310015886,0.7786597,2956.3,2954.7,0.14981089]
[1769310016087,4.29645771,2956.2,2954.7,0.14981089]
[1769310016384,4.29645771,2956.1,2954.7,0.14981089]
[1769310016585,0.7786597,2956.3,2954.7,0.14981089]
[1769310016789,4.29648722,2956.2,2954.7,0.14981089]
[1769310017087,4.29648722,2956.1,2954.7,0.14981089]
[1769310017287,0.7786597,2956.3,2954.7,0.14981089]
[1769310017487,4.29653279,2956.2,2954.7,0.14981089]
[1769310017688,4.29653279,2956.1,2954.7,0.14981089]
[1769310017883,0.7786597,2956.3,2954.7,0.14981089]
[1769310018187,4.29651229,2956.2,2954.7,0.14981089]
[1769310018486,4.29651229,2956.1,2954.7,0.14981089]
[1769310018687,0.7786597,2956.3,2954.7,0.14981089]
[1769310018878,4.29670022,2956.2,2954.7,0.14981089]
[1769310019081,4.29670022,2956.1,2954.7,0.14981089]
[1769310019387,0.7786597,2956.3,2954.7,0.14981089]
[1769310019582,4.2969305,2956.2,2954.7,0.14981089]
[1769310019781,4.2969305,2956.1,2954.7,0.14981089]
[1769310019983,0.7786597,2956.3,2954.7,0.14981089]
[1769310020177,4.29693095,2956.2,2954.7,0.14981089]
[1769310020378,4.29693095,2956.1,2954.7,0.14981089]
[1769310020583,0.7786597,2956.3,2954.7,0.14981089]
[1769310020882,4.29721543,2956.2,2954.7,0.14981089]
[1769310021083,4.29721543,2956.1,2954.7,0.14981089]
[1769310021283,0.78071475,2956.3,2954.7,0.14981089]
[1769310021484,4.29759351,2956.2,2954.7,0.14981089]
[1769310021690,4.29759351,2956.1,2954.7,0.14981089]
[1769310021884,0.78071475,2956.3,2954.7,0.14981089]
[1769310022085,4.29763548,2956.2,2954.7,0.14981089]
[1769310022285,4.29763548,2956.1,2954.7,0.14981089]
[1769310022584,0.78071475,2956.3,2954.7,0.14981089]
[1769310022785,4.29809066,2956.2,2954.7,0.14981089]
[1769310022986,4.29809066,2956.1,2954.7,0.14981089]
[1769310023188,0.78071475,2956.3,2954.7,0.14981089]
[1769310023488,4.29850279,2956.2,2954.7,0.14981089]
[1769310023688,4.29850279,2956.1,2954.7,0.14981089]
[1769310023890,0.78071475,2956.3,2954.7,0.14981089]
[1769310024090,4.29939948,2956.2,2954.7,0.14981089]
[1769310024386,4.29939948,2956.1,2954.7,0.14981089]
[1769310024590,0.78071475,2956.3,2954.7,0.14981089]
[1769310024789,4.30006123,2956.2,2954.7,0.14981089]
[1769310024989,4.30006123,2956.1,2954.7,0.14981089]
[1769310025193,0.78071475,2956.3,2954.7,0.14981089]
[1769310025396,4.30061008,2956.2,2954.7,0.14981089]
[1769310025596,4.30061008,2956.1,2954.7,0.14981089]
[1769310025788,4.30061008,2956.0,2954.7,0.14981089]
[1769310025988,0.78071475,2956.3,2954.7,0.14981089]
[1769310026191,4.30080495,2956.2,2954.7,0.14981089]
[1769310026390,4.30080495,2956.1,2954.7,0.14981089]
[1769310026592,4.30080495,2956.0,2954.7,0.14981089]
[1769310026795,0.78071475,2956.3,2954.7,0.14981089]
[1769310026995,4.30168028,2956.2,2954.7,0.14981089]
[1769310027196,4.30168028,2956.1,2954.7,0.14981089]
[1769310027394,4.30168028,2956.0,2954.7,0.14981089]
[1769310027597,0.78071475,2956.3,2954.7,0.14981089]
[1769310027799,4.30271178,2956.2,2954.7,0.14981089]
[1769310028101,0.78071475,2956.3,2954.7,0.14981089]
[1769310028102,4.30271178,2956.1,2954.7,0.14981089]
[1769310028397,4.30271178,2956.0,2954.7,0.14981089]
[1769310028697,0.78071475,2956.3,2954.7,0.14981089]
[1769310028896,4.30400461,2956.2,2954.7,0.14981089]
[1769310029090,4.30400461,2956.1,2954.7,0.14981089]
[1769310029288,4.30400461,2956.0,2954.7,0.14981089]
[1769310029488,0.78071475,2956.3,2954.7,0.14981089]
[1769310029690,4.30554705,2956.2,2954.7,0.14981089]
[1769310029893,4.30554705,2956.1,2954.7,0.14981089]
[1769310030094,4.30554705,2956.0,2954.7,0.14981089]
[1769310030303,4.30554688,2955.9,2954.7,0.14981089]
[1769310030496,0.78071475,2956.3,2954.7,0.14981089]
[1769310030697,4.30567236,2956.2,2954.7,0.14981089]
[1769310030898,4.30567236,2956.1,2954.7,0.14981089]
[1769310031201,4.30567236,2956.0,2954.7,0.14981089]
[1769310031401,4.30567236,2955.9,2954.7,0.14981089]
[1769310031699,4.30567236,2955.8,2954.7,0.14981089]
[1769310031902,0.78071475,2956.3,2954.7,0.14981089]
[1769310032104,4.30759647,2956.2,2954.7,0.14981089]
[1769310032304,0.78071475,2956.3,2954.7,0.14981089]
[1769310032305,4.30759647,2956.1,2954.7,0.14981089]
[1769310032506,4.30759647,2956.0,2954.7,0.14981089]
[1769310032699,4.30759647,2955.9,2954.7,0.14981089]
[1769310032894,4.30759647,2955.8,2954.7,0.14981089]
[1769310033099,0.78071475,2956.3,2954.7,0.14981089]
[1769310033298,4.3106634,2956.2,2954.7,0.14981089]
[1769310033506,4.3106634,2956.1,2954.7,0.14981089]
[1769310033705,4.3106634,2956.0,2954.7,0.14981089]
[1769310033912,4.3106634,2955.9,2954.7,0.14981089]
[1769310034105,4.3106634,2955.8,2954.7,0.14981089]
[1769310034306,4.3106634,2955.7,2954.7,0.14981089]
[1769310034605,0.78071475,2956.3,2954.7,0.14981089]
[1769310034802,4.31036501,2956.2,2954.7,0.14981089]
[1769310034999,4.31036501,2956.1,2954.7,0.14981089]
[1769310035198,4.31036501,2956.0,2954.7,0.14981089]
[1769310035399,4.31036501,2955.9,2954.7,0.14981089]
[1769310035601,4.31036501,2955.8,2954.7,0.14981089]
[1769310035803,4.31036501,2955.7,2954.7,0.14981089]
[1769310036002,0.78071475,2956.3,2954.7,0.14981089]
[1769310036306,4.32193707,2956.2,2954.7,0.14981089]
[1769310036603,4.32193707,2956.1,2954.7,0.14981089]
[1769310036804,4.32193707,2956.0,2954.7,0.14981089]
[1769310037003,4.32193707,2955.9,2954.7,0.14981089]
[1769310037204,4.32193707,2955.8,2954.7,0.14981089]
[1769310037406,4.32193707,2955.7,2954.7,0.14981089]
[1769310037605,0.78071475,2956.3,2954.7,0.14981089]
[1769310037805,4.32176482,2956.2,2954.7,0.14981089]
[1769310038009,4.32176482,2956.1,2954.7,0.14981089]
[1769310038202,4.32176482,2956.0,2954.7,0.14981089]
[1769310038402,4.32176482,2955.9,2954.7,0.14981089]
[1769310038605,4.32176482,2955.8,2954.7,0.14981089]
[1769310038805,4.32176482,2955.7,2954.7,0.14981089]
[1769310039007,0.78071475,2956.3,2954.7,0.14981089]
[1769310039208,4.32170364,2956.2,2954.7,0.14981089]
[1769310039409,4.32170364,2956.1,2954.7,0.14981089]
[1769310039607,4.32170364,2956.0,2954.7,0.14981089]
[1769310039808,4.32170364,2955.9,2954.7,0.14981089]
[1769310040009,4.32170364,2955.8,2954.7,0.14981089]
[1769310040211,4.32170364,2955.7,2954.7,0.14981089]
[1769310040512,0.00205505,2956.3,2954.7,0.14981089]
[1769310040712,4.32164014,2956.2,2954.7,0.14981089]
[1769310040912,4.32164014,2956.1,2954.7,0.14981089]
[1769310041110,4.32164014,2956.0,2954.7,0.14981089]
[1769310041418,4.32164014,2955.9,2954.7,0.14981089]
[1769310041709,4.32164014,2955.8,2954.7,0.14981089]
[1769310041900,4.32164014,2955.7,2954.7,0.14981089]
[1769310042107,0.00182777,2956.2,2954.7,0.14981089]
[1769310042308,4.32173738,2956.1,2954.7,0.14981089]
[1769310042615,4.32173738,2956.0,2954.7,0.14981089]
[1769310042801,4.32173738,2955.9,2954.7,0.14981089]
[1769310043004,4.32173738,2955.8,2954.7,0.14981089]
[1769310043204,4.32173738,2955.7,2954.7,0.14981089]
[1769310043508,0.00182777,2956.2,2954.7,0.14981089]
[1769310043710,4.32218203,2956.1,2954.7,0.14981089]
[1769310043901,4.32218203,2956.0,2954.7,0.14981089]
[1769310044105,4.32218203,2955.9,2954.7,0.14981089]
[1769310044310,4.32218203,2955.8,2954.7,0.14981089]
[1769310044611,4.32218203,2955.7,2954.7,0.14981089]
[1769310044807,0.00182777,2956.2,2954.7,0.14981089]
[1769310045007,4.32261271,2956.1,2954.7,0.14981089]
[1769310045208,4.32261271,2956.0,2954.7,0.14981089]
[1769310045410,4.32261271,2955.9,2954.7,0.14981089]
[1769310045709,4.32261271,2955.8,2954.7,0.14981089]
[1769310045910,4.32261271,2955.7,2954.7,0.14981089]
[1769310046109,0.00182777,2956.2,2954.7,0.14981089]
[1769310046409,4.32260651,2956.1,2954.7,0.14981089]
[1769310046609,4.32260651,2956.0,2954.7,0.14981089]
[1769310046810,4.32260651,2955.9,2954.7,0.14981089]
[1769310047011,4.32260651,2955.8,2954.7,0.14981089]
[1769310047311,4.32260651,2955.7,2954.7,0.14981089]
[1769310047512,0.00182777,2956.2,2954.7,0.14981089]
[1769310047714,4.32272292,2956.1,2954.7,0.14981089]
[1769310047907,4.32272292,2956.0,2954.7,0.14981089]
[1769310048206,4.32272292,2955.9,2954.7,0.14981089]
[1769310048409,4.32272292,2955.8,2954.7,0.14981089]
[1769310048607,4.32272292,2955.7,2954.7,0.14981089]
[1769310048806,0.00182777,2956.2,2954.7,0.14981089]
[1769310049019,4.32266298,2956.1,2954.7,0.14981089]
[1769310049213,4.32266298,2956.0,2954.7,0.14981089]
[1769310049513,4.32266298,2955.9,2954.7,0.14981089]
[1769310049709,4.32266298,2955.8,2954.7,0.14981089]
[1769310050008,4.32266298,2955.7,2954.7,0.14981089]
[1769310050207,0.00182777,2956.2,2954.7,0.14981089]
[1769310050410,4.32269312,2956.1,2954.7,0.14981089]
[1769310050608,4.32269312,2956.0,2954.7,0.14981089]
[1769310050813,4.32269312,2955.9,2954.7,0.14981089]
[1769310051013,4.32269312,2955.8,2954.7,0.14981089]
[1769310051213,4.32269312,2955.7,2954.7,0.14981089]
[1769310051516,0.00182777,2956.2,2954.7,0.14981089]
[1769310051704,4.32276564,2956.1,2954.7,0.14981089]
[1769310051914,4.32276564,2956.0,2954.7,0.14981089]
[1769310052213,4.32276564,2955.9,2954.7,0.14981089]
[1769310052417,4.32276564,2955.8,2954.7,0.14981089]
[1769310052714,4.32276564,2955.7,2954.7,0.14981089]
[1769310052915,0.00182777,2956.2,2954.7,0.14981089]
[1769310053114,4.32281493,2956.1,2954.7,0.14981089]
[1769310053415,4.32281493,2956.0,2954.7,0.14981089]
[1769310053611,4.32281493,2955.9,2954.7,0.14981089]
[1769310053812,4.32281493,2955.8,2954.7,0.14981089]
[1769310054014,4.32281493,2955.7,2954.7,0.14981089]
[1769310054210,0.00182777,2956.2,2954.7,0.14981089]
[1769310054419,4.32294802,2956.1,2954.7,0.14981089]
[1769310054619,4.32294802,2956.0,2954.7,0.14981089]
[1769310054816,4.32294802,2955.9,2954.7,0.14981089]
[1769310055116,4.32294802,2955.8,2954.7,0.14981089]
[1769310055321,4.32294802,2955.7,2954.7,0.14981089]
[1769310055525,0.00182777,2956.2,2954.7,0.14981089]
[1769310055724,4.32303977,2956.1,2954.7,0.14981089]
[1769310056019,0.00182777,2956.2,2954.7,0.14981089]
[1769310056020,4.32303977,2956.0,2954.7,0.14981089]
[1769310056215,4.32303977,2955.9,2954.7,0.14981089]
[1769310056419,4.32303977,2955.8,2954.7,0.14981089]
[1769310056715,4.32303977,2955.7,2954.7,0.14981089]
[1769310056919,0.00182777,2956.2,2954.7,0.14981089]
[1769310057121,4.32315395,2956.1,2954.7,0.14981089]
[1769310057418,4.32315395,2956.0,2954.7,0.14981089]
[1769310057618,4.32315395,2955.9,2954.7,0.14981089]
[1769310057818,4.32315395,2955.8,2954.7,0.14981089]
[1769310058019,4.32315395,2955.7,2954.7,0.14981089]
[1769310058317,0.00182777,2956.2,2954.7,0.14981089]
[1769310058517,4.32344866,2956.1,2954.7,0.14981089]
[1769310058725,4.32344866,2956.0,2954.7,0.14981089]
[1769310058926,0.00182777,2956.2,2954.7,0.14981089]
[1769310058927,4.32344866,2955.9,2954.7,0.14981089]
[1769310059127,4.32344866,2955.8,2954.7,0.14981089]
[1769310059426,4.32344866,2955.7,2954.7,0.14981089]
[1769310059725,0.00182777,2956.2,2954.7,0.14981089]
[1769310059926,4.32364902,2956.1,2954.7,0.14981089]
[1769310060120,4.32364902,2956.0,2954.7,0.14981089]
[1769310060321,4.32364902,2955.9,2954.7,0.14981089]
[1769310060527,4.32364902,2955.8,2954.7,0.14981089]
[1769310060808,4.32364902,2955.7,2954.7,0.14981089]
[1769310060991,0.00182777,2956.2,2954.7,0.14981089]
[1769310061229,4.32401118,2956.1,2954.7,0.14981089]
[1769310061428,4.32401118,2956.0,2954.7,0.14981089]
[1769310061626,4.32401118,2955.9,2954.7,0.14981089]
[1769310061826,4.32401118,2955.8,2954.7,0.14981089]
[1769310062126,4.32401118,2955.7,2954.7,0.14981089]
[1769310062327,0.00182777,2956.2,2954.7,0.14981089]
[1769310062527,4.32432741,2956.1,2954.7,0.14981089]
[1769310062825,4.32432741,2956.0,2954.7,0.14981089]
[1769310063026,4.32432741,2955.9,2954.7,0.14981089]
[1769310063228,4.32432741,2955.8,2954.7,0.14981089]
[1769310063424,4.32432741,2955.7,2954.7,0.14981089]
[1769310063724,0.00182777,2956.2,2954.7,0.14981089]
[1769310064025,4.32445226,2956.1,2954.7,0.14981089]
[1769310064224,4.32445226,2956.0,2954.7,0.14981089]
[1769310064426,4.32445226,2955.9,2954.7,0.14981089]
[1769310064626,4.32445226,2955.8,2954.7,0.14981089]
[1769310064828,4.32445226,2955.7,2954.7,0.14981089]
[1769310065026,0.00182777,2956.2,2954.7,0.14981089]
[1769310065326,4.32445258,2956.1,2954.7,0.14981089]
[1769310065525,4.32445258,2956.0,2954.7,0.14981089]
[1769310065725,0.00182777,2956.2,2954.7,0.14981089]
[1769310065726,4.32445258,2955.9,2954.7,0.14981089]
[1769310065925,4.32445258,2955.8,2954.7,0.14981089]
[1769310066127,4.32445258,2955.7,2954.7,0.14981089]
[1769310066430,1.987,2956.3,2954.7,0.14981089]
[1769310066723,4.31832919,2956.2,2954.8,0.15000979]
[1769310066928,4.31832919,2956.1,2954.8,0.15000979]
[1769310067127,4.31832919,2956.0,2954.8,0.15000979]
[1769310067326,4.31832919,2955.9,2954.8,0.15000979]
[1769310067630,1.987,2956.3,2954.8,0.15000979]
[1769310067825,4.31827796,2956.2,2954.8,0.15000979]
[1769310068025,4.31827796,2956.1,2954.8,0.15000979]
[1769310068231,4.31827796,2956.0,2954.8,0.15000979]
[1769310068429,1.987,2956.3,2954.8,0.15000979]
[1769310068626,4.3175926,2956.2,2954.8,0.15000979]
[1769310068827,4.3175926,2956.1,2954.8,0.15000979]
[1769310069126,4.3175926,2956.0,2954.8,0.15000979]
[1769310069326,0.16938,2956.5,2954.8,0.15000979]
[1769310069526,4.31709484,2956.4,2954.8,0.15000979]
[1769310069730,4.31709484,2956.3,2954.8,0.15000979]
[1769310069917,4.31709484,2956.2,2954.8,0.15000979]
[1769310070118,4.31709484,2956.1,2954.8,0.15000979]
[1769310070425,4.31709484,2956.0,2954.8,0.15000979]
[1769310070722,1.987,2956.6,2954.8,0.15000979]
[1769310070925,4.31662353,2956.5,2954.8,0.15000979]
[1769310071231,4.31662353,2956.4,2954.8,0.15000979]
[1769310071420,4.31662353,2956.3,2954.8,0.15000979]
[1769310071623,4.31662353,2956.2,2954.8,0.15000979]
[1769310071824,4.31662353,2956.1,2954.8,0.15000979]
[1769310072024,4.31662353,2956.0,2954.8,0.15000979]
[1769310072230,1.987,2956.6,2954.9,0.14940873]
[1769310072432,4.3163136,2956.5,2954.9,0.14940873]
[1769310072629,4.3163136,2956.4,2954.9,0.14940873]
[1769310072831,4.3163136,2956.3,2954.9,0.14940873]
[1769310073032,4.3163136,2956.2,2954.9,0.14940873]
[1769310073232,4.3163136,2956.1,2954.9,0.14940873]
[1769310073433,1.987,2956.6,2954.9,0.14940873]
[1769310073633,4.31555332,2956.5,2954.9,0.14940873]
[1769310073932,4.31555332,2956.4,2954.9,0.14940873]
[1769310074133,4.31555332,2956.3,2954.9,0.14940873]
[1769310074323,4.31555332,2956.2,2954.9,0.14940873]
[1769310074528,4.31555332,2956.1,2954.9,0.14940873]
[1769310074727,1.987,2956.6,2954.9,0.14940873]
[1769310074923,5.09380482,2956.5,2955.2,0.92819771]
[1769310075128,4.31526626,2956.4,2955.2,0.92819771]
[1769310080437,4.31526626,2956.4,2955.2,0.14965915]
[1769310080639,0.77853856,2956.3,2955.2,0.14965915]
[1769310080838,4.31526626,2956.2,2955.2,0.14965915]
[1769310081142,4.31526626,2956.1,2955.2,0.14965915]
[1769310081342,0.77853856,2956.3,2955.2,0.14965915]
[1769310081546,4.31438677,2956.2,2955.2,0.14965915]
[1769310081740,4.31438677,2956.1,2955.2,0.14965915]
[1769310082041,4.31438677,2956.0,2955.2,0.14965915]
[1769310082243,0.77853856,2956.3,2955.2,0.14965915]
[1769310082535,4.31419362,2956.2,2955.2,0.14965915]
[1769310082727,4.31419362,2956.1,2955.2,0.14965915]
[1769310082930,4.31419362,2956.0,2955.2,0.14965915]
[1769310083132,0.77853856,2956.3,2955.2,0.14965915]
[1769310083343,4.31422184,2956.2,2955.2,0.14965915]
[1769310083545,4.31422184,2956.1,2955.2,0.14965915]
[1769310083839,4.31422184,2956.0,2955.2,0.14965915]
[1769310084039,0.77853856,2956.3,2955.2,0.14965915]
[1769310084242,4.31431651,2956.2,2955.2,0.14965915]
[1769310084540,4.31431651,2956.1,2955.2,0.14965915]
[1769310084732,4.31431651,2956.0,2955.2,0.14965915]
[1769310084935,0.77853856,2956.3,2955.2,0.14965915]
[1769310085235,4.31439749,2956.2,2955.2,0.14965915]
[1769310085435,4.31439749,2956.1,2955.2,0.14965915]
[1769310085644,4.31439749,2956.0,2955.2,0.14965915]
[1769310085841,0.77853856,2956.3,2955.2,0.14965915]
[1769310086041,4.3145515,2956.2,2955.2,0.14965915]
[1769310086240,4.3145515,2956.1,2955.2,0.14965915]
[1769310086444,4.3145515,2956.0,2955.2,0.14965915]
[1769310086644,0.77853856,2956.3,2955.2,0.14965915]
[1769310086843,4.31469483,2956.2,2955.2,0.14965915]
[1769310087042,4.31469483,2956.1,2955.2,0.14965915]
[1769310087340,4.31469483,2956.0,2955.2,0.14965915]
[1769310087542,0.77853856,2956.3,2955.2,0.14965915]
[1769310087740,4.31488244,2956.2,2955.2,0.14965915]
[1769310087934,4.31488244,2956.1,2955.2,0.14965915]
[1769310088135,4.31488244,2956.0,2955.2,0.14965915]
[1769310088336,0.77853856,2956.3,2955.2,0.14965915]
[1769310088635,4.31507746,2956.2,2955.2,0.14965915]
[1769310088835,4.31507746,2956.1,2955.2,0.14965915]
[1769310089132,4.31507746,2956.0,2955.2,0.14965915]
[1769310089335,0.77853856,2956.3,2955.2,0.14965915]
[1769310089533,4.31534824,2956.2,2955.2,0.14965915]
[1769310089833,4.31534824,2956.1,2955.2,0.14965915]
[1769310090032,4.31534824,2956.0,2955.2,0.14965915]
[1769310090231,0.77853856,2956.3,2955.2,0.14965915]
[1769310090534,4.31534753,2956.2,2955.2,0.14965915]
[1769310090734,4.31534753,2956.1,2955.2,0.14965915]
[1769310090935,0.77853856,2956.3,2955.2,0.14965915]
[1769310091242,4.31539668,2956.2,2955.2,0.14965915]
[1769310091441,4.31539668,2956.1,2955.2,0.14965915]
[1769310091643,0.77853856,2956.3,2955.2,0.14965915]
[1769310091845,4.31570916,2956.2,2955.2,0.14965915]
[1769310092045,4.31570916,2956.1,2955.2,0.14965915]
[1769310092243,0.77853856,2956.3,2955.2,0.14965915]
[1769310092444,4.31605633,2956.2,2955.2,0.14965915]
[1769310092642,4.31605633,2956.1,2955.2,0.14965915]
[1769310092842,0.77853856,2956.3,2955.2,0.14965915]
[1769310093042,4.31607929,2956.2,2955.2,0.14965915]
[1769310093245,4.31607929,2956.1,2955.2,0.14965915]
[1769310093545,0.77853856,2956.3,2955.2,0.14965915]
[1769310093734,4.31648422,2956.2,2955.2,0.14965915]
[1769310093943,4.31648422,2956.1,2955.2,0.14965915]
[1769310094140,0.77853856,2956.3,2955.2,0.14965915]
[1769310094437,4.31648325,2956.2,2955.2,0.14965915]
[1769310094640,4.31648325,2956.1,2955.2,0.14965915]
[1769310094846,0.77853856,2956.3,2955.2,0.14965915]
[1769310095045,4.31703839,2956.2,2955.2,0.14965915]
[1769310095240,4.31703839,2956.1,2955.2,0.14965915]
[1769310095440,0.77853856,2956.3,2955.2,0.14965915]
[1769310095640,4.3030427,2956.2,2955.2,0.14965915]
[1769310095840,4.3030427,2956.1,2955.2,0.14965915]
[1769310096139,0.77853856,2956.3,2955.2,0.14965915]
[1769310096339,4.30308562,2956.2,2955.2,0.14965915]
[1769310096543,0.77853856,2956.3,2955.2,0.14965915]
[1769310096544,4.30308562,2956.1,2955.2,0.14965915]
[1769310096744,4.30308562,2956.0,2955.2,0.14965915]
[1769310097044,1.987,2956.6,2955.2,0.14965915]
[1769310097349,4.30447401,2956.5,2955.2,0.14965915]
[1769310097546,4.30447401,2956.4,2955.2,0.14965915]
[1769310097846,4.30447401,2956.3,2955.2,0.14965915]
[1769310098145,4.30447401,2956.2,2955.2,0.14965915]
[1769310098347,4.30447401,2956.1,2955.2,0.14965915]
[1769310098646,4.30447401,2956.0,2955.2,0.14965915]
[1769310098837,1.987,2956.6,2955.2,0.14965915]
[1769310099039,4.30456708,2956.5,2955.2,0.14965915]
[1769310099241,4.30456708,2956.4,2955.2,0.14965915]
[1769310099443,4.30456708,2956.3,2955.2,0.14965915]
[1769310099646,4.30456708,2956.2,2955.2,0.14965915]
[1769310099848,4.30456708,2956.1,2955.2,0.14965915]
[1769310100149,4.30456708,2956.0,2955.2,0.14965915]
[1769310100341,1.987,2956.6,2955.2,0.14965915]
[1769310100547,4.30463991,2956.5,2955.2,0.14965915]
[1769310100748,4.30463991,2956.4,2955.2,0.14965915]
[1769310101046,4.30463991,2956.3,2955.2,0.14965915]
[1769310101248,4.30463991,2956.2,2955.2,0.14965915]
[1769310101451,4.30463991,2956.1,2955.2,0.14965915]
[1769310101648,4.30463991,2956.0,2955.2,0.14965915]
[1769310101850,1.987,2956.6,2955.2,0.14965915]
[1769310102149,4.30471014,2956.5,2955.2,0.14965915]
[1769310102350,4.30471014,2956.4,2955.2,0.14965915]
[1769310102548,4.30471014,2956.3,2955.2,0.14965915]
[1769310102749,4.30471014,2956.2,2955.2,0.14965915]
[1769310102946,4.30471014,2956.1,2955.2,0.14965915]
[1769310103151,4.30471014,2956.0,2955.2,0.14965915]
[1769310103350,1.987,2956.6,2955.2,0.14965915]
[1769310103546,4.30481304,2956.5,2955.2,0.14965915]
[1769310103745,4.30481304,2956.4,2955.2,0.14965915]
[1769310103946,1.987,2956.6,2955.2,0.14965915]
[1769310103947,4.30481304,2956.3,2955.2,0.14965915]
[1769310104241,4.30481304,2956.2,2955.2,0.14965915]
[1769310104441,4.30481304,2956.1,2955.2,0.14965915]
[1769310104646,4.30481304,2956.0,2955.2,0.14965915]
[1769310104847,1.987,2956.6,2955.2,0.14965915]
[1769310105051,4.30483274,2956.5,2955.2,0.14965915]
[1769310105245,4.30483274,2956.4,2955.2,0.14965915]
[1769310105449,4.30483274,2956.3,2955.2,0.14965915]
[1769310105646,4.30483274,2956.2,2955.2,0.14965915]
[1769310105842,4.30483274,2956.1,2955.2,0.14965915]
[1769310106052,4.30483274,2956.0,2955.2,0.14965915]
[1769310106252,1.987,2956.6,2955.2,0.14965915]
[1769310106553,4.30487169,2956.5,2955.2,0.14965915]
[1769310106750,4.30487169,2956.4,2955.2,0.14965915]
[1769310106951,4.30487169,2956.3,2955.2,0.14965915]
[1769310107250,4.30487169,2956.2,2955.2,0.14965915]
[1769310107453,4.30487169,2956.1,2955.2,0.14965915]
[1769310107650,4.30487169,2956.0,2955.2,0.14965915]
[1769310107851,1.987,2956.6,2955.2,0.14965915]
[1769310108050,4.30489592,2956.5,2955.2,0.14965915]
[1769310108251,4.30489592,2956.4,2955.2,0.14965915]
[1769310108452,4.30489592,2956.3,2955.2,0.14965915]
[1769310108653,4.30489592,2956.2,2955.2,0.14965915]
[1769310108852,4.30489592,2956.1,2955.2,0.14965915]
[1769310109052,4.30489592,2956.0,2955.2,0.14965915]
[1769310109352,1.987,2956.6,2955.2,0.14965915]
[1769310109548,4.30497301,2956.5,2955.2,0.14965915]
[1769310109853,4.30497301,2956.4,2955.2,0.14965915]
[1769310110056,4.30497301,2956.3,2955.2,0.14965915]
[1769310110254,4.30497301,2956.2,2955.2,0.14965915]
[1769310110454,4.30497301,2956.1,2955.2,0.14965915]
[1769310110660,4.30497301,2956.0,2955.2,0.14965915]
[1769310110956,1.987,2956.6,2955.2,0.14965915]
[1769310111157,4.30500823,2956.5,2955.2,0.14965915]
[1769310111455,4.30500823,2956.4,2955.2,0.14965915]
[1769310111657,4.30500823,2956.3,2955.2,0.14965915]
[1769310111856,4.30500823,2956.2,2955.2,0.14965915]
[1769310112058,4.30500823,2956.1,2955.2,0.14965915]
[1769310112354,4.30500823,2956.0,2955.2,0.14965915]
[1769310112555,1.987,2956.6,2955.2,0.14965915]
[1769310112756,4.30510647,2956.5,2955.2,0.14965915]
[1769310112957,4.30510647,2956.4,2955.2,0.14965915]
[1769310113259,4.30510647,2956.3,2955.2,0.14965915]
[1769310113460,4.30510647,2956.2,2955.2,0.14965915]
[1769310113656,4.30510647,2956.1,2955.2,0.14965915]
[1769310113857,1.987,2956.6,2955.2,0.14965915]
[1769310114053,4.30502089,2956.5,2955.2,0.14965915]
[1769310114250,4.30502089,2956.4,2955.2,0.14965915]
[1769310114553,4.30502089,2956.3,2955.2,0.14965915]
[1769310114756,4.30502089,2956.2,2955.2,0.14965915]
[1769310114957,4.30502089,2956.1,2955.2,0.14965915]
[1769310115149,1.987,2956.6,2955.2,0.14965915]
[1769310115364,4.3049985,2956.5,2955.2,0.14965915]
[1769310115559,4.3049985,2956.4,2955.2,0.14965915]
[1769310115760,4.3049985,2956.3,2955.2,0.14965915]
[1769310115960,4.3049985,2956.2,2955.2,0.14965915]
[1769310116160,4.3049985,2956.1,2955.2,0.14965915]
[1769310116361,1.987,2956.6,2955.2,0.14965915]
[1769310116566,4.30496744,2956.5,2955.2,0.14965915]
[1769310116766,4.30496744,2956.4,2955.2,0.14965915]
[1769310117065,4.30496744,2956.3,2955.2,0.14965915]
[1769310117265,4.30496744,2956.2,2955.2,0.14965915]
[1769310117565,4.30496744,2956.1,2955.2,0.14965915]
[1769310117764,1.987,2956.6,2955.2,0.14965915]
[1769310117966,4.30510111,2956.5,2955.2,0.14965915]
[1769310118166,4.30510111,2956.4,2955.2,0.14965915]
[1769310118466,4.30510111,2956.3,2955.2,0.14965915]
[1769310118660,4.30510111,2956.2,2955.2,0.14965915]
[1769310118861,4.30510111,2956.1,2955.2,0.14965915]
[1769310119056,1.987,2956.6,2955.2,0.14965915]
[1769310119261,4.30510333,2956.5,2955.2,0.14965915]
[1769310119464,4.30510333,2956.4,2955.2,0.14965915]
[1769310119665,4.30510333,2956.3,2955.2,0.14965915]
[1769310119865,4.30510333,2956.2,2955.2,0.14965915]
[1769310120060,4.30510333,2956.1,2955.2,0.14965915]
[1769310120261,1.987,2956.6,2955.2,0.14965915]
[1769310120462,4.30508089,2956.5,2955.2,0.14965915]
[1769310120663,4.30508089,2956.4,2955.2,0.14965915]
[1769310120866,4.30508089,2956.3,2955.2,0.14965915]
[1769310121065,4.30508089,2956.2,2955.2,0.14965915]
[1769310121268,4.30508089,2956.1,2955.2,0.14965915]
[1769310121565,1.987,2956.6,2955.2,0.14965915]
[1769310121766,4.30518675,2956.5,2955.2,0.14965915]
[1769310121967,4.30518675,2956.4,2955.2,0.14965915]
[1769310122168,4.30518675,2956.3,2955.2,0.14965915]
[1769310122369,4.30518675,2956.2,2955.2,0.14965915]
[1769310122563,4.30518675,2956.1,2955.2,0.14965915]
[1769310122861,1.987,2956.6,2955.2,0.14965915]
[1769310123061,4.30517688,2956.5,2955.2,0.14965915]
[1769310123258,4.30517688,2956.4,2955.2,0.14965915]
[1769310123462,4.30684729,2956.3,2954.8,0.15015159]
[1769310123665,4.30684729,2956.2,2954.8,0.15015159]
[1769310123866,4.30517688,2956.1,2954.8,0.15015159]
[1769310124066,0.00167041,2956.2,2954.8,0.15015159]
[1769310124067,4.30517688,2956.0,2954.8,0.15015159]
[1769310124269,4.30517688,2955.9,2954.8,0.15015159]
[1769310124468,0.00167041,2956.2,2954.8,0.15015159]
[1769310124669,4.3041399,2956.1,2954.8,0.15015159]
[1769310124868,4.3041399,2956.0,2954.8,0.15015159]
[1769310125068,4.3041399,2955.9,2954.8,0.15015159]
[1769310125272,0.00167041,2956.2,2954.8,0.15015159]
[1769310125573,4.29844405,2956.1,2954.8,0.15015159]